fUSD/lending_fUSD_20251127
["ID","MTS","AMOUNT","RATE_DAILY","PERIOD"]
[394989411,1764270643308,-9121.79999995,0.00016,2]
[394989421,1764270645618,-199.56818532,0.000159,2]
[394989422,1764270645628,-799.43181468,0.00016,2]
[394989423,1764270645639,-3560.72093674,0.00016,2]
[394989424,1764270645871,-1735.3699871,0.00016,2]
[394989425,1764270645884,-40876.05553811,0.00016,2]
[394989426,1764270645896,-7100.0,0.00016,2]
[394989427,1764270645908,-1319.25095415,0.00016,2]
[394989446,1764271296718,2067.94357828,0.000218,30]
[394989447,1764271312771,150.86,0.00019178,30]
[394989448,1764271328082,1535.386896,7.945e-05,2]
[394989454,1764271503801,150.0,0.000144,2]
[394989455,1764271506112,150.0,0.000144,2]
[394989456,1764271506729,150.0,0.000144,2]
[394989457,1764271513195,150.0,0.000144,2]
[394989458,1764271513371,150.0,0.000144,2]
[394989459,1764271513507,150.0,0.000144,2]
[394989460,1764271513576,150.0,0.000144,2]
[394989461,1764271520017,150.0,0.000144,2]
[394989462,1764271520079,150.0,0.000144,2]
[394989463,1764271520158,150.0,0.000144,2]
[394989464,1764271520206,195.4840363,0.000144,2]
[394989465,1764271528490,150.0,0.000144,2]
[394989466,1764271528614,150.0,0.000144,2]
[394989467,1764271551902,685.01,0.00014681,2]
[394989468,1764271553988,5784.1290677,0.000146,2]
[394989469,1764271554013,10000.01,0.000146,2]
[394989470,1764271554039,10000.01,0.000146,2]
[394989471,1764271554062,10000.01,0.000146,2]
[394989472,1764271554088,10000.01,0.000146,2]
[394989473,1764271554125,8372.98532966,0.000146,2]
[394989474,1764271683864,500.0,0.00014583,2]
[394989475,1764271696000,3566.4,0.00014583,2]
[394989488,1764271831743,-212.0,0.00014933,2]
[394989489,1764271831753,-150.0,0.00014933,2]
[394989490,1764271831763,-150.0,0.00014933,2]
[394989491,1764271831771,-799.234,0.00014959,2]
[394989492,1764271831781,-156.943,0.00014959,2]
[394989493,1764271831790,-1139.9544209,0.00014999,2]
[394989500,1764271832090,-60.0455791,0.00014999,2]
[394989503,1764271832262,-300.0,0.00014999,2]
[394989504,1764271832273,-300.0,0.00014999,2]
[394989505,1764271832282,-3689.27949218,0.00015,2]
[394989506,1764271832292,-1056.47494956,0.00015,2]
[394989509,1764271837738,-705.5248217,0.00015,2]
[394989510,1764271837847,-9962.02390662,0.00015,2]
[394989511,1764271837859,-3774.87586366,0.00015,2]
[394989512,1764271837868,-999.0,0.00015111,3]
[394989513,1764271837877,-300.0,0.00015163,2]
[394989514,1764271837886,-500.0,0.00015163,2]
[394989515,1764271837895,-328.22469603,0.00015163,2]
[394989516,1764271837905,-500.0,0.00015163,2]
[394989518,1764271837924,-378.63915734,0.00015163,2]
[394989519,1764271837933,-1436.8259,0.00015164,2]
[394989520,1764271837943,-15204.33902501,0.00015164,2]
[394989521,1764271837955,-1685.44520005,0.00015164,2]
[394989523,1764271839917,-500.0,0.00015163,2]
[394989524,1764271839929,-461.7648757,0.00015163,2]
[394989525,1764271839941,-500.0,0.00015163,2]
[394989526,1764271839951,-500.0,0.00015163,2]
[394989527,1764271839962,-500.0,0.00015163,2]
[394989528,1764271839979,-500.0,0.00015163,2]
[394989529,1764271839991,-287.05820813,0.00015163,2]
[394989530,1764271840004,-500.0,0.00015163,2]
[394989531,1764271840016,-500.0,0.00015163,2]
[394989532,1764271840027,-500.0,0.00015163,2]
[394989533,1764271840040,-500.0,0.00015163,2]
[394989534,1764271840052,-500.0,0.00015163,2]
[394989535,1764271840064,-500.0,0.00015163,2]
[394989536,1764271840077,-500.0,0.00015163,2]
[394989537,1764271840088,-1042.39267494,0.00015164,2]
[394989538,1764271840100,-50143.18242656,0.00015164,2]
[394989539,1764271840115,-38212.21708142,0.00015164,2]
[394989540,1764271840153,-5055.39518934,0.00015164,2]
[394989542,1764271843410,-500.0,0.00015163,2]
[394989543,1764271843422,-500.0,0.00015163,2]
[394989544,1764271843433,-7278.35514654,0.00015164,2]
[394989550,1764271845861,-23969.155328,0.00015164,2]
[394989559,1764271867264,243.5,0.00011942,2]
[394989566,1764272116641,7241.72,0.00014604,2]
[394989571,1764272133991,302.17,0.00014604,2]
[394989593,1764272171647,-200.0,0.00014756,2]
[394989607,1764272262562,1600.0,0.00014597,2]
[394989608,1764272330277,1500.0,0.00014616,2]
[394989609,1764272356679,200.0,0.00014621,2]
[394989611,1764272382580,968.22,0.00014607,2]
[394989612,1764272421612,782.83,0.00013699,2]
[394989617,1764272499114,-210.0,0.00014815,2]
[394989739,1764272670754,245.34,0.00014323,2]
[394989750,1764272708121,150.0,0.000144,2]
[394989751,1764272708308,150.0,0.000144,2]
[394989768,1764272715906,150.0,0.000144,2]
[394989769,1764272716039,94.66,0.000144,2]
[394989770,1764272716062,55.34,0.000144,2]
[394989771,1764272716099,150.0,0.000144,2]
[394989786,1764272722743,150.0,0.000144,2]
[394989787,1764272722899,150.0,0.000144,2]
[394989788,1764272728072,260.18846656,0.000144,2]
[394989789,1764272728447,150.0,0.000144,2]
[394989792,1764272730309,150.0,0.000144,2]
[394989795,1764272750001,749.91,7.158e-05,2]
[394989796,1764272750238,749.91,7.535e-05,2]
[394989797,1764272750491,749.91,7.912e-05,2]
[394989798,1764272750750,749.91,8.288e-05,2]
[394989799,1764272750946,749.91,8.665e-05,2]
[394989800,1764272751370,749.91,9.042e-05,2]
[394989801,1764272751603,749.91,9.419e-05,2]
[394989802,1764272751818,749.91,9.795e-05,2]
[394989803,1764272752048,749.91,0.00010172,2]
[394989804,1764272752264,749.91,0.00010549,2]
[394989805,1764272752491,749.91,0.00010926,2]
[394989806,1764272752714,749.91,0.00011302,2]
[394989807,1764272752915,140.90153344,0.00011679,2]
[394989808,1764272752940,609.00846656,0.00011679,2]
[394989809,1764272753141,749.91,0.00012056,2]
[394989810,1764272753331,749.91,0.00012433,2]
[394989811,1764272753538,749.91,0.00012809,2]
[394989813,1764272753919,749.91,0.00013186,2]
[394989814,1764272753960,749.91,0.00013563,2]
[394989815,1764272754155,749.91,0.0001394,2]
[394989816,1764272754614,749.91,0.00014316,2]
[394989849,1764272973195,4141.63153344,0.00014229,2]
[394989850,1764272973217,10000.01,0.00014229,2]
[394989851,1764272973244,10000.01,0.00014229,2]
[394989852,1764272973266,10000.01,0.00014229,2]
[394989853,1764272973289,2704.69846656,0.00014229,2]
[394989872,1764273031847,-212.12966822,0.00014815,2]
[394989873,1764273031859,-300.0,0.00014815,2]
[394989874,1764273031869,-213.5,0.00014815,2]
[394989875,1764273031878,-4904.81116374,0.000149,2]
[394989876,1764273031887,-292.24392201,0.00014973,2]
[394989877,1764273031897,-532.17350158,0.00014973,2]
[394989878,1764273031906,-1020.49873,0.0001504,2]
[394989879,1764273031914,-222.65612674,0.0001506,2]
[394989880,1764273031923,-151.0,0.00015061,2]
[394989881,1764273031934,-300.0,0.00015062,2]
[394989882,1764273031943,-1200.0,0.00015062,2]
[394989883,1764273031952,-1200.0,0.00015063,2]
[394989884,1764273031961,-300.0,0.00015063,2]
[394989885,1764273031970,-879.6,0.00015063,2]
[394989886,1764273031979,-237.51399739,0.00015063,2]
[394989887,1764273031987,-500.0,0.00015063,2]
[394989888,1764273031996,-435.91615376,0.00015063,2]
[394989889,1764273032005,-500.0,0.00015063,2]
[394989890,1764273032014,-500.0,0.00015063,2]
[394989891,1764273032022,-180.84467276,0.00015063,2]
[394989892,1764273032031,-165.69518681,0.00015063,2]
[394989893,1764273032040,-500.0,0.00015063,2]
[394989894,1764273032048,-500.0,0.00015063,2]
[394989895,1764273032057,-500.0,0.00015063,2]
[394989896,1764273032065,-500.0,0.00015063,2]
[394989897,1764273032074,-500.0,0.00015063,2]
[394989898,1764273032083,-500.0,0.00015063,2]
[394989899,1764273032092,-500.0,0.00015063,2]
[394989900,1764273032101,-500.0,0.00015063,2]
[394989901,1764273032109,-500.0,0.00015063,2]
[394989902,1764273032118,-500.0,0.00015063,2]
[394989903,1764273032127,-500.0,0.00015063,2]
[394989904,1764273032136,-500.0,0.00015063,2]
[394989905,1764273032147,-500.0,0.00015063,2]
[394989906,1764273032156,-500.0,0.00015063,2]
[394989907,1764273032165,-316.00184805,0.00015063,2]
[394989908,1764273032174,-500.0,0.00015063,2]
[394989909,1764273032182,-500.0,0.00015063,2]
[394989910,1764273032191,-500.0,0.00015063,2]
[394989911,1764273032200,-500.0,0.00015063,2]
[394989912,1764273032208,-500.0,0.00015063,2]
[394989913,1764273032217,-500.0,0.00015063,2]
[394989914,1764273032226,-500.0,0.00015063,2]
[394989915,1764273032235,-500.0,0.00015063,2]
[394989916,1764273032244,-500.0,0.00015063,2]
[394989917,1764273032253,-500.0,0.00015063,2]
[394989918,1764273032261,-500.0,0.00015063,2]
[394989919,1764273032270,-500.0,0.00015063,2]
[394989920,1764273032279,-500.0,0.00015063,2]
[394989921,1764273032287,-500.0,0.00015063,2]
[394989922,1764273032296,-500.0,0.00015063,2]
[394989923,1764273032305,-500.0,0.00015063,2]
[394989924,1764273032314,-500.0,0.00015063,2]
[394989925,1764273032323,-500.0,0.00015063,2]
[394989926,1764273032332,-500.0,0.00015063,2]
[394989927,1764273032341,-500.0,0.00015063,2]
[394989928,1764273032350,-500.0,0.00015063,2]
[394989929,1764273032359,-500.0,0.00015063,2]
[394989930,1764273032368,-500.0,0.00015063,2]
[394989931,1764273032377,-500.0,0.00015063,2]
[394989932,1764273032386,-500.0,0.00015063,2]
[394989933,1764273032395,-500.0,0.00015063,2]
[394989934,1764273032403,-500.0,0.00015063,2]
[394989935,1764273032412,-500.0,0.00015063,2]
[394989936,1764273032421,-191.97228126,0.00015063,2]
[394989937,1764273032429,-500.0,0.00015063,2]
[394989938,1764273032438,-500.0,0.00015063,2]
[394989939,1764273032447,-500.0,0.00015063,2]
[394989940,1764273032455,-500.0,0.00015063,2]
[394989941,1764273032464,-500.0,0.00015063,2]
[394989942,1764273032473,-500.0,0.00015063,2]
[394989943,1764273032482,-500.0,0.00015063,2]
[394989944,1764273032491,-500.0,0.00015063,2]
[394989945,1764273032499,-500.0,0.00015063,2]
[394989946,1764273032509,-500.0,0.00015063,2]
[394989947,1764273032518,-500.0,0.00015063,2]
[394989948,1764273032527,-500.0,0.00015063,2]
[394989949,1764273032536,-200.0,0.00015063,2]
[394989950,1764273032545,-500.0,0.00015063,2]
[394989951,1764273032554,-500.0,0.00015063,2]
[394989952,1764273032564,-500.0,0.00015063,2]
[394989955,1764273032575,-500.0,0.00015063,2]
[394989957,1764273032585,-500.0,0.00015063,2]
[394989958,1764273032595,-300.0,0.00015063,2]
[394989959,1764273032604,-500.0,0.00015063,2]
[394989960,1764273032614,-500.0,0.00015063,2]
[394989961,1764273032623,-17829.43471646,0.00015064,2]
[394989962,1764273032635,-13413.58493574,0.00015064,2]
[394989963,1764273032737,-271.36066455,0.00015064,2]
[394989964,1764273032749,-5813.00072368,0.00015064,2]
[394989973,1764273037948,-174.71619394,0.00015053,2]
[394989974,1764273037958,-18632.84596276,0.00015064,2]
[394989975,1764273038001,-533.77595014,0.00015064,2]
[394990135,1764273040050,-8861.00672097,0.00015064,2]
[394990137,1764273040061,-4451.77200289,0.00015064,2]
[394990466,1764273043470,1000.0,0.00014617,2]
[394990469,1764273043488,-332.4,0.00015064,2]
[394990471,1764273043499,-9523.99957396,0.00015064,2]
[394990473,1764273043511,-719.2951,0.00015064,2]
[394990540,1764273044167,-0.74582746,0.00015064,2]
[394990549,1764273044244,-234378.74639243,0.00015064,2]
[394990725,1764273045927,-551.60859241,0.00015064,2]
[394990738,1764273046036,-5000.00114039,0.00015064,2]
[394991650,1764273335801,166.66,0.00013699,2]
[394991651,1764273336011,166.66,0.00013965,2]
[394991654,1764273336199,166.66,0.0001423,2]
[394991655,1764273336405,166.66,0.00014496,2]
[394991670,1764273386744,5756.054847,0.00014688,2]
[394991685,1764273393084,150.0,0.0001423,2]
[394991727,1764273707616,222.65612674,0.00014655,2]
[394991744,1764273882378,150.0,0.00014481,2]
[394991747,1764273906723,150.0,0.000144,2]
[394991749,1764273909665,150.0,0.000144,2]
[394991751,1764273916491,150.0,0.000144,2]
[394991752,1764273916606,150.0,0.000144,2]
[394991753,1764273928720,150.0,0.000144,2]
[394991764,1764274008409,3000.0,0.00025,120]
[394991766,1764274019201,150.86,0.00019178,30]
[394991768,1764274029623,667.78760309,0.00025,120]
[394991787,1764274213520,-222.65612674,0.00014751,2]
[394991788,1764274213551,-166.66,0.00014762,2]
[394991789,1764274213578,-250.0,0.00014772,2]
[394991790,1764274213606,-195.0,0.00014772,2]
[394991791,1764274213634,-263.01952989,0.00014864,2]
[394991792,1764274213664,-200.16415053,0.00014864,2]
[394991793,1764274213690,-436.9760992,0.00014864,2]
[394991794,1764274226459,500.0,0.00014506,2]
[394991817,1764274232023,-101.28484068,0.00014864,2]
[394991818,1764274232032,-850.4156,0.0001491,2]
[394991819,1764274232042,-151.0,0.00014955,2]
[394991820,1764274232051,-300.0,0.00014961,2]
[394991821,1764274232061,-1200.0,0.00014961,2]
[394991822,1764274232071,-1200.0,0.00014962,2]
[394991823,1764274232081,-150.0,0.00014962,2]
[394991824,1764274232090,-1209.45,0.00014963,2]
[394991825,1764274232100,-500.0,0.00014963,2]
[394991828,1764274232287,-305.14130763,0.00014963,2]
[394991831,1764274232296,-166.25979817,0.00014963,2]
[394991834,1764274232305,-500.0,0.00014963,2]
[394991837,1764274232316,-176.59127094,0.00014963,2]
[394991840,1764274232329,-500.0,0.00014963,2]
[394991843,1764274232338,-201.77798312,0.00014963,2]
[394991846,1764274232347,-500.0,0.00014963,2]
[394991849,1764274232356,-500.0,0.00014963,2]
[394991851,1764274232366,-180.89724703,0.00014963,2]
[394991852,1764274232378,-319.10275297,0.00014963,2]
[394991853,1764274232387,-500.0,0.00014963,2]
[394991854,1764274232399,-500.0,0.00014963,2]
[394991855,1764274232408,-500.0,0.00014963,2]
[394991856,1764274232417,-500.0,0.00014963,2]
[394991857,1764274232427,-500.0,0.00014963,2]
[394991858,1764274232436,-500.0,0.00014963,2]
[394991859,1764274232445,-500.0,0.00014963,2]
[394991860,1764274232455,-500.0,0.00014963,2]
[394991861,1764274232464,-274.98540011,0.00014963,2]
[394991862,1764274232473,-499.40128591,0.00014963,2]
[394991863,1764274232484,-0.59871409,0.00014963,2]
[394991864,1764274232494,-500.0,0.00014963,2]
[394991865,1764274232503,-500.0,0.00014963,2]
[394991866,1764274232512,-500.0,0.00014963,2]
[394991867,1764274232522,-500.0,0.00014963,2]
[394991868,1764274232531,-500.0,0.00014963,2]
[394991869,1764274232540,-500.0,0.00014963,2]
[394991870,1764274232549,-500.0,0.00014963,2]
[394991871,1764274232558,-500.0,0.00014963,2]
[394991872,1764274232567,-500.0,0.00014963,2]
[394991873,1764274232576,-500.0,0.00014963,2]
[394991874,1764274232585,-500.0,0.00014963,2]
[394991875,1764274232595,-379.40128591,0.00014963,2]
[394991876,1764274232607,-120.59871409,0.00014963,2]
[394991877,1764274232616,-500.0,0.00014963,2]
[394991878,1764274232626,-500.0,0.00014963,2]
[394991879,1764274232636,-179.40128591,0.00014963,2]
[394991880,1764274232648,-320.59871409,0.00014963,2]
[394991881,1764274232657,-51.26655623,0.00014963,2]
[394991882,1764274232668,-448.73344377,0.00014963,2]
[394991883,1764274232678,-500.0,0.00014963,2]
[394991884,1764274232687,-401.7427126,0.00014963,2]
[394991885,1764274232698,-98.2572874,0.00014963,2]
[394991886,1764274232708,-500.0,0.00014963,2]
[394991887,1764274232717,-500.0,0.00014963,2]
[394991888,1764274232727,-500.0,0.00014963,2]
[394991889,1764274232735,-500.0,0.00014963,2]
[394991890,1764274232745,-500.0,0.00014963,2]
[394991891,1764274232753,-516.9611507,0.00014964,2]
[394991892,1764274232765,-1861.86,0.00014964,2]
[394991893,1764274232799,-4117.43702421,0.00014964,2]
[394991894,1764274232810,-693.9620725,0.00014964,2]
[394991897,1764274237978,-9102.8151,0.00014964,2]
[394991898,1764274237990,-3119.58589212,0.00014964,2]
[394991899,1764274238035,-32128.42000721,0.00014964,2]
[394991900,1764274238090,-3794.37705144,0.00014964,2]
[394991901,1764274238102,-425.7576315,0.00014964,2]
[394991902,1764274238144,-1811.80915,0.00014964,2]
[394991903,1764274238155,-1917.36410537,0.00014964,2]
[394992084,1764274240182,-8680.38621978,0.00014964,2]
[394992086,1764274240193,-8947.21879473,0.00014964,2]
[394992088,1764274240204,-8943.78386462,0.00014964,2]
[394992090,1764274240215,-9077.54866152,0.00014964,2]
[394992093,1764274240227,-8943.84023489,0.00014964,2]
[394992097,1764274240261,-2064.347687,0.00014964,2]
[394992104,1764274240317,-2748.5595335,0.00014964,2]
[394992106,1764274240332,-916.605,0.00014964,2]
[394992160,1764274243691,-455.53625129,0.00014964,2]
[394992161,1764274243745,-590.73083757,0.00014964,2]
[394992162,1764274244497,-39003.69462113,0.00014964,2]
[394992163,1764274246184,-500.0,0.00014964,2]
[394992164,1764274246344,-832.98442154,0.00014964,2]
[394992165,1764274246356,-8875.56782447,0.00014964,2]
[394992172,1764274246756,-2743.94968528,0.00014964,2]
[394992209,1764274265413,500.0,0.00014662,2]
[394992210,1764274441439,250.0,0.00014206,2]
[394992214,1764274588823,999.0,0.00014116,3]
[394992215,1764274635743,3570.52,0.0001414,2]
[394992216,1764274670841,200.4318045,0.00014657,2]
[394992217,1764274720976,200.0,0.00014062,2]
[394992218,1764274809503,222.65612674,0.00014567,2]
[394992219,1764274856335,1600.0,0.00014085,2]
[394992220,1764274972603,7776.92206876,0.00013988,2]
[394992221,1764274972630,10000.01,0.00013988,2]
[394992222,1764274972652,7387.69793124,0.00013988,2]
[394992223,1764274978783,168.0,0.00014696,2]
[394992224,1764274988547,1535.386896,7.945e-05,2]
[394992225,1764274990567,250.67117171,0.00013988,2]
[394992226,1764274990602,2311.4891963,0.00013988,2]
[394992227,1764274990641,171.84782484,0.00013988,2]
[394992228,1764274998086,658.15217516,0.00013988,2]
[394992229,1764275032527,162.9910991,0.00014664,2]
[394992230,1764275038413,162.9910991,0.00014714,2]
[394992231,1764275108562,150.0,0.000144,2]
[394992232,1764275108715,150.0,0.000144,2]
[394992233,1764275108752,150.0,0.000144,2]
[394992234,1764275115489,150.0,0.000144,2]
[394992235,1764275115580,150.0,0.000144,2]
[394992236,1764275115761,150.0,0.000144,2]
[394992237,1764275116018,150.0,0.000144,2]
[394992238,1764275118082,150.63510213,0.000144,2]
[394992239,1764275119308,150.0,0.000144,2]
[394992240,1764275123797,150.0,0.000144,2]
[394992241,1764275123859,150.0,0.000144,2]
[394992242,1764275123926,150.0,0.000144,2]
[394992243,1764275129587,150.0,0.000144,2]
[394992244,1764275129673,150.0,0.000144,2]
[394992245,1764275227574,-168.0,0.00014733,2]
[394992247,1764275291231,222.65612674,0.00014557,2]
[394992250,1764275311698,1318.1779349,0.00015,4]
[394992251,1764275342168,239.3,0.00013972,2]
[394992252,1764275348509,511.019605,7.945e-05,2]
[394992253,1764275353756,162.9910991,0.00014663,2]
[394992256,1764275373576,8864.04316916,0.00013951,2]
[394992257,1764275373610,52931.26683084,0.00013951,2]
[394992258,1764275408570,5774.612935,7.945e-05,2]
[394992259,1764275426262,1288.94,6.971e-05,2]
[394992260,1764275426455,1288.94,7.337e-05,2]
[394992261,1764275426659,1288.94,7.704e-05,2]
[394992262,1764275426847,358.577065,8.071e-05,2]
[394992263,1764275426873,930.362935,8.071e-05,2]
[394992264,1764275427059,1288.94,8.438e-05,2]
[394992265,1764275427267,1288.94,8.805e-05,2]
[394992266,1764275427498,1288.94,9.172e-05,2]
[394992267,1764275427714,1288.94,9.539e-05,2]
[394992268,1764275427898,1288.94,9.906e-05,2]
[394992269,1764275428106,1288.94,0.00010272,2]
[394992270,1764275428310,1288.94,0.00010639,2]
[394992271,1764275428504,1288.94,0.00011006,2]
[394992272,1764275428712,1288.94,0.00011373,2]
[394992273,1764275428915,1288.94,0.0001174,2]
[394992274,1764275429120,1288.94,0.00012107,2]
[394992275,1764275429394,1288.94,0.00012474,2]
[394992276,1764275429642,1288.94,0.00012841,2]
[394992277,1764275429856,1288.94,0.00013207,2]
[394992278,1764275430069,1288.94,0.00013574,2]
[394992279,1764275430297,1288.94,0.00013941,2]
[394992292,1764275432162,-239.3,0.00014748,2]
[394992294,1764275432173,-236.25863551,0.00014755,2]
[394992295,1764275432182,-195.0,0.00014756,2]
[394992296,1764275432192,-168.0,0.00014757,2]
[394992297,1764275432202,-148.88933939,0.00014762,2]
[394992298,1764275432214,-151.11066061,0.00014762,2]
[394992299,1764275432223,-1200.0,0.00014762,2]
[394992300,1764275432234,-1200.0,0.00014763,2]
[394992301,1764275432243,-300.0,0.00014763,2]
[394992302,1764275432253,-626.11966787,0.00014763,2]
[394992303,1764275432262,-2133.49356751,0.00014764,2]
[394992304,1764275432274,-403.7998463,0.00014764,2]
[394992305,1764275432284,-30.8277852,0.00014764,2]
[394992306,1764275432295,-158.4385893,0.00014764,2]
[394992307,1764275432305,-10431.10901646,0.00014764,2]
[394992308,1764275432317,-486.87103,0.00014764,2]
[394992309,1764275432336,-616.30115354,0.00014764,2]
[394992310,1764275432348,-1024.10434,0.0001481,2]
[394992311,1764275432357,-578.20924308,0.00014835,2]
[394992312,1764275432368,-1400.0,0.00014835,2]
[394992313,1764275432378,-890.95555639,0.00014835,2]
[394992314,1764275432387,-150.0,0.00014854,2]
[394992315,1764275432396,-500.0,0.00014855,2]
[394992317,1764275432406,-500.0,0.00014855,2]
[394992319,1764275432416,-500.0,0.00014855,2]
[394992321,1764275432425,-500.0,0.00014855,2]
[394992322,1764275432435,-500.0,0.00014855,2]
[394992323,1764275432444,-500.0,0.00014855,2]
[394992324,1764275432454,-500.0,0.00014855,2]
[394992325,1764275432464,-500.0,0.00014855,2]
[394992326,1764275432478,-500.0,0.00014855,2]
[394992327,1764275432487,-500.0,0.00014855,2]
[394992328,1764275432497,-500.0,0.00014855,2]
[394992329,1764275432507,-178.01844454,0.00014855,2]
[394992330,1764275432520,-321.98155546,0.00014855,2]
[394992331,1764275432529,-500.0,0.00014855,2]
[394992332,1764275432539,-500.0,0.00014855,2]
[394992333,1764275432548,-500.0,0.00014855,2]
[394992334,1764275432558,-500.0,0.00014855,2]
[394992335,1764275432568,-500.0,0.00014855,2]
[394992336,1764275432577,-620.0,0.00014855,2]
[394992337,1764275432586,-500.0,0.00014855,2]
[394992338,1764275432599,-500.0,0.00014855,2]
[394992339,1764275432608,-500.0,0.00014855,2]
[394992340,1764275432618,-3.86254072,0.00014855,2]
[394992341,1764275433007,-270.69232887,0.00014855,2]
[394992342,1764275433019,-225.44513041,0.00014855,2]
[394992343,1764275433029,-121.98995025,0.00014855,2]
[394992344,1764275433040,-306.02975,0.00014855,2]
[394992345,1764275433052,-71.98029975,0.00014855,2]
[394992346,1764275433061,-500.0,0.00014855,2]
[394992347,1764275433072,-500.0,0.00014855,2]
[394992348,1764275433081,-500.0,0.00014855,2]
[394992349,1764275433091,-500.0,0.00014855,2]
[394992350,1764275433105,-143.5423113,0.00014855,2]
[394992351,1764275433117,-356.4576887,0.00014855,2]
[394992352,1764275433127,-212.18000193,0.00014855,2]
[394992353,1764275433138,-287.81999807,0.00014855,2]
[394992354,1764275433148,-500.0,0.00014855,2]
[394992355,1764275433157,-500.0,0.00014855,2]
[394992356,1764275433166,-139.18895191,0.00014855,2]
[394992357,1764275433178,-360.81104809,0.00014855,2]
[394992358,1764275433187,-68.18895205,0.00014855,2]
[394992359,1764275433198,-431.81104795,0.00014855,2]
[394992360,1764275433208,-232.83482205,0.00014855,2]
[394992361,1764275433223,-17.16517795,0.00014855,2]
[394992362,1764275433232,-500.0,0.00014855,2]
[394992363,1764275433241,-250.0,0.00014855,2]
[394992364,1764275433252,-284.74760302,0.00014855,2]
[394992365,1764275433261,-300.0,0.00014855,2]
[394992366,1764275433271,-200.7184079,0.0001486,2]
[394992367,1764275433281,-151.0,0.0001486,2]
[394992368,1764275433290,-500.0,0.00014863,2]
[394992369,1764275433302,-503.92598697,0.00014863,2]
[394992370,1764275433311,-213.59891534,0.00014863,2]
[394992371,1764275433321,-500.0,0.00014863,2]
[394992372,1764275433330,-500.0,0.00014863,2]
[394992373,1764275433339,-500.0,0.00014863,2]
[394992374,1764275433349,-500.0,0.00014863,2]
[394992375,1764275433358,-500.0,0.00014863,2]
[394992376,1764275433367,-500.0,0.00014863,2]
[394992377,1764275433376,-500.0,0.00014863,2]
[394992378,1764275433385,-500.0,0.00014863,2]
[394992379,1764275433394,-500.0,0.00014863,2]
[394992380,1764275433403,-500.0,0.00014863,2]
[394992381,1764275433412,-338.61736084,0.00014863,2]
[394992382,1764275433422,-500.0,0.00014863,2]
[394992383,1764275433431,-500.0,0.00014863,2]
[394992384,1764275433440,-500.0,0.00014863,2]
[394992385,1764275433449,-500.0,0.00014863,2]
[394992386,1764275433458,-500.0,0.00014863,2]
[394992387,1764275433467,-500.0,0.00014863,2]
[394992388,1764275433477,-500.0,0.00014863,2]
[394992389,1764275433486,-500.0,0.00014863,2]
[394992390,1764275433498,-500.0,0.00014863,2]
[394992391,1764275433507,-500.0,0.00014863,2]
[394992392,1764275433516,-500.0,0.00014863,2]
[394992393,1764275433525,-500.0,0.00014863,2]
[394992394,1764275433534,-500.0,0.00014863,2]
[394992395,1764275433543,-500.0,0.00014863,2]
[394992396,1764275433552,-500.0,0.00014863,2]